[Event "Titled Tuesday Blitz May 03 Early 2022"]
[White "Eynullayev, Atilla"]
[Black "Aradhya, Garg"]
[WhiteFideId "13413570"]
[BlackFideId "25006746"]
[WhiteElo "2515"]
[BlackElo "2737"]
[Result "1-0"]
[Round "07"]
[TimeControl "180+1"]
[Date "2022.05.03"]
[WhiteClock "0:00:15"]
[BlackClock "0:00:14"]

1. e4 {[%clk 0:03:00]}  e5 {[%clk 0:02:57]} 2. Nf3 {[%clk 0:03:01]}  Nc6 {[%clk 0:02:56]} 3. Bb5 {[%clk 0:03:01]}  a6 {[%clk 0:02:56]} 4. Ba4 {[%clk 0:03:02]}  Bc5 {[%clk 0:02:55]} 5. O-O {[%clk 0:03:00]}  d6 {[%clk 0:02:55]} 6. c3 {[%clk 0:02:45]}  Bd7 {[%clk 0:02:54]} 7. d4 {[%clk 0:02:45]}  Ba7 {[%clk 0:02:55]} 8. Be3 {[%clk 0:02:42]}  Nge7 {[%clk 0:02:54]} 9. Nbd2 {[%clk 0:02:41]}  O-O {[%clk 0:02:52]} 10. h3 {[%clk 0:02:38]}  exd4 {[%clk 0:02:42]} 11. cxd4 {[%clk 0:02:37]}  d5 {[%clk 0:02:43]} 12. exd5 {[%clk 0:02:21]}  Nxd5 {[%clk 0:02:42]} 13. Bg5 {[%clk 0:02:22]}  f6 {[%clk 0:02:32]} 14. Bh4 {[%clk 0:02:03]}  Kh8 {[%clk 0:02:12]} 15. Ne4 {[%clk 0:01:56]}  Nce7 {[%clk 0:01:33]} 16. Bb3 {[%clk 0:01:44]}  Bf5 {[%clk 0:01:29]} 17. Nc5 {[%clk 0:01:41]}  b6 {[%clk 0:01:06]} 18. Nd3 {[%clk 0:01:40]}  a5 {[%clk 0:01:05]} 19. Bg3 {[%clk 0:01:30]}  Qd7 {[%clk 0:01:04]} 20. Rc1 {[%clk 0:01:29]}  Rfd8 {[%clk 0:01:03]} 21. Re1 {[%clk 0:01:15]}  Rac8 {[%clk 0:01:01]} 22. a4 {[%clk 0:01:08]}  h6 {[%clk 0:00:52]} 23. Bc4 {[%clk 0:01:07]}  Nb4 {[%clk 0:00:45]} 24. Nf4 {[%clk 0:01:00]}  Ned5 {[%clk 0:00:41]} 25. Nh4 {[%clk 0:00:57]}  Nxf4 {[%clk 0:00:39]} 26. Bxf4 {[%clk 0:00:57]}  Re8 {[%clk 0:00:32]} 27. Qh5 {[%clk 0:00:46]}  Bh7 {[%clk 0:00:24]} 28. Bf7 {[%clk 0:00:45]}  Rxe1+ {[%clk 0:00:24]} 29. Rxe1 {[%clk 0:00:45]}  Rf8 {[%clk 0:00:23]} 30. Be6 {[%clk 0:00:38]}  Qe8 {[%clk 0:00:22]} 31. Qd1 {[%clk 0:00:25]}  Bb8 {[%clk 0:00:20]} 32. Bf5 {[%clk 0:00:20]}  Qf7 {[%clk 0:00:19]} 33. Bxh7 {[%clk 0:00:20]}  Kxh7 {[%clk 0:00:20]} 34. Nf5 {[%clk 0:00:14]}  Re8 {[%clk 0:00:19]} 35. Rxe8 {[%clk 0:00:14]}  Qxe8 {[%clk 0:00:20]} 36. Qg4 {[%clk 0:00:14]}  Qg6 {[%clk 0:00:20]} 37. Ne7 {[%clk 0:00:10]}  Qxg4 {[%clk 0:00:19]} 38. hxg4 {[%clk 0:00:11]}  g5 {[%clk 0:00:16]} 39. Bg3 {[%clk 0:00:10]}  Kg7 {[%clk 0:00:17]} 40. Nf5+ {[%clk 0:00:09]}  Kg6 {[%clk 0:00:17]} 41. Kf1 {[%clk 0:00:09]}  h5 {[%clk 0:00:16]} 42. f3 {[%clk 0:00:09]}  hxg4 {[%clk 0:00:16]} 43. fxg4 {[%clk 0:00:10]}  Nd5 {[%clk 0:00:16]} 44. Ke2 {[%clk 0:00:10]}  Kf7 {[%clk 0:00:16]} 45. Kd3 {[%clk 0:00:10]}  Ba7 {[%clk 0:00:16]} 46. Ke4 {[%clk 0:00:07]}  c6 {[%clk 0:00:14]} 47. Nd6+ {[%clk 0:00:08]}  Ke6 {[%clk 0:00:14]} 48. Nc8 {[%clk 0:00:09]}  b5 {[%clk 0:00:13]} 49. Nxa7 {[%clk 0:00:09]}  bxa4 {[%clk 0:00:13]} 50. Nxc6 {[%clk 0:00:09]}  a3 {[%clk 0:00:09]} 51. bxa3 {[%clk 0:00:09]}  Nc3+ {[%clk 0:00:09]} 52. Kd3 {[%clk 0:00:09]}  Nb5 {[%clk 0:00:10]} 53. Nxa5 {[%clk 0:00:09]}  Nxa3 {[%clk 0:00:10]} 54. Nc4 {[%clk 0:00:10]}  Nb5 {[%clk 0:00:10]} 55. Ne3 {[%clk 0:00:11]}  Kf7 {[%clk 0:00:07]} 56. Ke4 {[%clk 0:00:11]}  Nc3+ {[%clk 0:00:06]} 57. Kf5 {[%clk 0:00:11]}  Ne2 {[%clk 0:00:06]} 58. Bd6 {[%clk 0:00:10]}  Nxd4+ {[%clk 0:00:07]} 59. Ke4 {[%clk 0:00:11]}  Ne2 {[%clk 0:00:07]} 60. Nf5 {[%clk 0:00:10]}  Ke6 {[%clk 0:00:07]} 61. Bh2 {[%clk 0:00:10]}  Nc3+ {[%clk 0:00:07]} 62. Kf3 {[%clk 0:00:10]}  Nd5 {[%clk 0:00:07]} 63. Ng3 {[%clk 0:00:11]}  Nc3 {[%clk 0:00:07]} 64. Bg1 {[%clk 0:00:11]}  Nd5 {[%clk 0:00:07]} 65. Bd4 {[%clk 0:00:11]}  Kf7 {[%clk 0:00:07]} 66. Ke4 {[%clk 0:00:11]}  Ne7 {[%clk 0:00:05]} 67. Nh5 {[%clk 0:00:10]}  Ng8 {[%clk 0:00:05]} 68. Kf5 {[%clk 0:00:11]}  Nh6+ {[%clk 0:00:06]} 69. Ke4 {[%clk 0:00:11]}  Nxg4 {[%clk 0:00:06]} 70. Kf3 {[%clk 0:00:12]}  f5 {[%clk 0:00:06]} 71. Ng3 {[%clk 0:00:12]}  Kg6 {[%clk 0:00:06]} 72. Ne2 {[%clk 0:00:12]}  Nh6 {[%clk 0:00:06]} 73. g3 {[%clk 0:00:13]}  f4 {[%clk 0:00:06]} 74. g4 {[%clk 0:00:12]}  Nf7 {[%clk 0:00:06]} 75. Nc3 {[%clk 0:00:13]}  Nd6 {[%clk 0:00:06]} 76. Ne4 {[%clk 0:00:12]}  Nc4 {[%clk 0:00:06]} 77. Bf6 {[%clk 0:00:11]}  Nd2+ {[%clk 0:00:05]} 78. Nxd2 {[%clk 0:00:11]}  Kxf6 {[%clk 0:00:06]} 79. Ne4+ {[%clk 0:00:12]}  Kg6 {[%clk 0:00:06]} 80. Ke2 {[%clk 0:00:12]}  Kh6 {[%clk 0:00:07]} 81. Kd3 {[%clk 0:00:12]}  Kg6 {[%clk 0:00:07]} 82. Kd4 {[%clk 0:00:13]}  Kh6 {[%clk 0:00:07]} 83. Ke5 {[%clk 0:00:13]}  Kg6 {[%clk 0:00:07]} 84. Ke6 {[%clk 0:00:13]}  f3 {[%clk 0:00:07]} 85. Ke5 {[%clk 0:00:13]}  Kh6 {[%clk 0:00:07]} 86. Kf5 {[%clk 0:00:13]}  Kg7 {[%clk 0:00:08]} 87. Nf2 {[%clk 0:00:13]}  Kh6 {[%clk 0:00:07]} 88. Kf6 {[%clk 0:00:14]}  Kh7 {[%clk 0:00:07]} 89. Kxg5 {[%clk 0:00:14]}  Kg7 {[%clk 0:00:08]} 90. Kf5 {[%clk 0:00:15]}  Kh6 {[%clk 0:00:08]} 91. g5+ {[%clk 0:00:15]}  Kg7 {[%clk 0:00:09]} 92. Kg4 {[%clk 0:00:12]}  Kg6 {[%clk 0:00:09]} 93. Kf4 {[%clk 0:00:12]}  Kh5 {[%clk 0:00:09]} 94. Kf5 {[%clk 0:00:13]}  Kh4 {[%clk 0:00:09]} 95. g6 {[%clk 0:00:13]}  Kg3 {[%clk 0:00:09]} 96. Ne4+ {[%clk 0:00:13]}  Kg2 {[%clk 0:00:09]} 97. g7 {[%clk 0:00:13]}  f2 {[%clk 0:00:10]} 98. g8=Q+ {[%clk 0:00:14]}  Kh2 {[%clk 0:00:10]} 99. Qh7+ {[%clk 0:00:12]}  Kg1 {[%clk 0:00:10]} 100. Nxf2 {[%clk 0:00:12]}  Kxf2 {[%clk 0:00:11]} 101. Qh3 {[%clk 0:00:13]}  Ke2 {[%clk 0:00:11]} 102. Ke4 {[%clk 0:00:13]}  Kd2 {[%clk 0:00:12]} 103. Qd3+ {[%clk 0:00:13]}  Kc1 {[%clk 0:00:12]} 104. Qe2 {[%clk 0:00:14]}  Kb1 {[%clk 0:00:12]} 105. Kd3 {[%clk 0:00:14]}  Ka1 {[%clk 0:00:13]} 106. Kc3 {[%clk 0:00:15]}  Kb1 {[%clk 0:00:14]} 107. Qb2# {[%clk 0:00:15]} 1-0


[Site "https://www.chess.com"]

[Event "Titled Tuesday Blitz May 03 Early 2022"]
[White "Fiorito, Fabian"]
[Black "Melikyan, Gnel"]
[WhiteFideId "100200"]
[BlackFideId "54109990"]
[WhiteElo "2395"]
[BlackElo "1772"]
[Result "1-0"]
[Round "07"]
[TimeControl "180+1"]
[Date "2022.05.03"]
[WhiteClock "0:01:47"]
[BlackClock "0:01:22"]

1. d4 {[%clk 0:03:00]}  Nf6 {[%clk 0:02:58]} 2. Nc3 {[%clk 0:03:01]}  d5 {[%clk 0:02:59]} 3. Bf4 {[%clk 0:03:01]}  c6 {[%clk 0:02:59]} 4. e3 {[%clk 0:03:01]}  Qb6 {[%clk 0:03:00]} 5. Rb1 {[%clk 0:02:59]}  Bf5 {[%clk 0:03:00]} 6. Qd2 {[%clk 0:02:58]}  Nbd7 {[%clk 0:02:59]} 7. Bd3 {[%clk 0:02:56]}  e6 {[%clk 0:02:59]} 8. Nge2 {[%clk 0:02:51]}  Bxd3 {[%clk 0:02:53]} 9. cxd3 {[%clk 0:02:49]}  Be7 {[%clk 0:02:50]} 10. O-O {[%clk 0:02:49]}  O-O {[%clk 0:02:49]} 11. a3 {[%clk 0:02:48]}  a5 {[%clk 0:02:47]} 12. Rfc1 {[%clk 0:02:40]}  Rfc8 {[%clk 0:02:44]} 13. Bg5 {[%clk 0:02:32]}  h6 {[%clk 0:02:43]} 14. Bh4 {[%clk 0:02:32]}  Qb3 {[%clk 0:02:33]} 15. e4 {[%clk 0:02:28]}  Kh8 {[%clk 0:02:21]} 16. Ng3 {[%clk 0:02:23]}  Rd8 {[%clk 0:02:13]} 17. Nh5 {[%clk 0:02:19]}  Nxe4 {[%clk 0:02:06]} 18. dxe4 {[%clk 0:01:47]}  Bxh4 {[%clk 0:02:06]} 19. Qf4 {[%clk 0:01:47]}  Bg5 {[%clk 0:01:42]} 20. Qxf7 {[%clk 0:01:47]}  Rg8 {[%clk 0:01:39]} 21. f4 {[%clk 0:01:48]}  Bf6 {[%clk 0:01:22]} 22. e5 {[%clk 0:01:47]} 1-0


[Site "https://www.chess.com"]

[Event "Titled Tuesday Blitz May 03 Early 2022"]
[White "Harshavardhan G B"]
[Black "Zia, Tahsin Tajwar"]
[WhiteFideId "25059009"]
[BlackFideId "10211888"]
[WhiteElo "1831"]
[BlackElo "1800"]
[Result "1-0"]
[Round "07"]
[TimeControl "180+1"]
[Date "2022.05.03"]
[WhiteClock "0:00:13"]
[BlackClock "0:00:04"]

1. d4 {[%clk 0:03:00]}  d5 {[%clk 0:02:59]} 2. c4 {[%clk 0:02:59]}  e6 {[%clk 0:02:58]} 3. Nf3 {[%clk 0:02:58]}  Nf6 {[%clk 0:02:57]} 4. g3 {[%clk 0:02:57]}  Bb4+ {[%clk 0:02:53]} 5. Bd2 {[%clk 0:02:57]}  a5 {[%clk 0:02:53]} 6. Qc2 {[%clk 0:02:56]}  O-O {[%clk 0:02:52]} 7. Bg2 {[%clk 0:02:56]}  c5 {[%clk 0:02:50]} 8. O-O {[%clk 0:02:53]}  cxd4 {[%clk 0:02:46]} 9. Nxd4 {[%clk 0:02:50]}  Nc6 {[%clk 0:02:46]} 10. Nxc6 {[%clk 0:02:40]}  bxc6 {[%clk 0:02:47]} 11. a3 {[%clk 0:02:38]}  Bxd2 {[%clk 0:02:26]} 12. Nxd2 {[%clk 0:02:39]}  Ba6 {[%clk 0:02:26]} 13. Rfc1 {[%clk 0:02:36]}  Qb6 {[%clk 0:02:24]} 14. e3 {[%clk 0:02:34]}  Rab8 {[%clk 0:02:22]} 15. Rab1 {[%clk 0:02:33]}  h5 {[%clk 0:02:15]} 16. b4 {[%clk 0:02:26]}  axb4 {[%clk 0:02:15]} 17. axb4 {[%clk 0:02:27]}  Qd8 {[%clk 0:01:51]} 18. Ra1 {[%clk 0:02:19]}  Qb6 {[%clk 0:01:24]} 19. c5 {[%clk 0:02:16]}  Qb7 {[%clk 0:01:23]} 20. Rcb1 {[%clk 0:02:11]}  Bb5 {[%clk 0:01:17]} 21. Nb3 {[%clk 0:02:09]}  e5 {[%clk 0:01:12]} 22. Qf5 {[%clk 0:02:04]}  Qe7 {[%clk 0:01:08]} 23. Ra3 {[%clk 0:01:52]}  g6 {[%clk 0:00:59]} 24. Qc2 {[%clk 0:01:50]}  h4 {[%clk 0:00:53]} 25. Rba1 {[%clk 0:01:47]}  Qe6 {[%clk 0:00:51]} 26. Ra7 {[%clk 0:01:43]}  Bc4 {[%clk 0:00:37]} 27. R1a4 {[%clk 0:01:22]}  Bb5 {[%clk 0:00:33]} 28. Ra3 {[%clk 0:01:18]}  Qg4 {[%clk 0:00:33]} 29. Qd2 {[%clk 0:00:59]}  h3 {[%clk 0:00:30]} 30. f3 {[%clk 0:00:51]}  Qf5 {[%clk 0:00:23]} 31. Bh1 {[%clk 0:00:48]}  Qb1+ {[%clk 0:00:08]} 32. Qc1 {[%clk 0:00:46]}  Qf5 {[%clk 0:00:05]} 33. g4 {[%clk 0:00:43]}  Nxg4 {[%clk 0:00:04]} 34. fxg4 {[%clk 0:00:44]}  Qxg4+ {[%clk 0:00:04]} 35. Kf2 {[%clk 0:00:45]}  Qf5+ {[%clk 0:00:04]} 36. Kg3 {[%clk 0:00:39]}  Qg5+ {[%clk 0:00:04]} 37. Kf2 {[%clk 0:00:36]}  Qf5+ {[%clk 0:00:04]} 38. Ke1 {[%clk 0:00:34]}  Qg4 {[%clk 0:00:03]} 39. Kd2 {[%clk 0:00:29]}  Kg7 {[%clk 0:00:02]} 40. Kc3 {[%clk 0:00:26]}  Qf5 {[%clk 0:00:02]} 41. Qd1 {[%clk 0:00:24]}  Rh8 {[%clk 0:00:03]} 42. Nc1 {[%clk 0:00:19]}  Rh4 {[%clk 0:00:03]} 43. Rb3 {[%clk 0:00:17]}  Rc4+ {[%clk 0:00:03]} 44. Kb2 {[%clk 0:00:17]}  Qf6 {[%clk 0:00:03]} 45. Ka2 {[%clk 0:00:16]}  Rh8 {[%clk 0:00:04]} 46. Nd3 {[%clk 0:00:15]}  Rhh4 {[%clk 0:00:04]} 47. e4 {[%clk 0:00:15]}  dxe4 {[%clk 0:00:03]} 48. Nb2 {[%clk 0:00:15]}  Rd4 {[%clk 0:00:04]} 49. Qe1 {[%clk 0:00:15]}  Qe6 {[%clk 0:00:03]} 50. Qxh4 {[%clk 0:00:14]}  Rxb4 {[%clk 0:00:03]} 51. Ra3 {[%clk 0:00:13]}  Ba4 {[%clk 0:00:03]} 52. Nxa4 {[%clk 0:00:13]}  Qc4 {[%clk 0:00:03]} 53. Qxh3 {[%clk 0:00:13]}  Qc2+ {[%clk 0:00:03]} 54. Nb2 {[%clk 0:00:13]}  Rd4 {[%clk 0:00:02]} 55. Qc3 {[%clk 0:00:13]}  Qxh2 {[%clk 0:00:02]} 56. Bxe4 {[%clk 0:00:12]}  Rxe4 {[%clk 0:00:02]} 57. Ra7 {[%clk 0:00:12]}  Qf4 {[%clk 0:00:02]} 58. Qa5 {[%clk 0:00:12]}  g5 {[%clk 0:00:03]} 59. Qc7 {[%clk 0:00:12]}  g4 {[%clk 0:00:03]} 60. Qxc6 {[%clk 0:00:13]}  g3 {[%clk 0:00:04]} 61. Rxg3+ {[%clk 0:00:12]}  Qxg3 {[%clk 0:00:04]} 62. Qxe4 {[%clk 0:00:13]} 1-0


[Site "https://www.chess.com"]

[Event "Titled Tuesday Blitz May 03 Early 2022"]
[White "Iljin, Timofey"]
[Black "Jobava, Baadur"]
[WhiteFideId "14110180"]
[BlackFideId "13601520"]
[WhiteElo "2483"]
[BlackElo "3003"]
[Result "0-1"]
[Round "07"]
[TimeControl "180+1"]
[Date "2022.05.03"]
[WhiteClock "0:00:19"]
[BlackClock "0:00:51"]

1. d4 {[%clk 0:03:00]}  Nf6 {[%clk 0:02:58]} 2. c4 {[%clk 0:03:01]}  c5 {[%clk 0:02:58]} 3. d5 {[%clk 0:03:01]}  b5 {[%clk 0:02:56]} 4. e4 {[%clk 0:03:02]}  d6 {[%clk 0:02:54]} 5. cxb5 {[%clk 0:03:01]}  Nxe4 {[%clk 0:02:53]} 6. Ne2 {[%clk 0:03:01]}  g6 {[%clk 0:02:49]} 7. Nec3 {[%clk 0:03:01]}  Nxc3 {[%clk 0:02:49]} 8. Nxc3 {[%clk 0:03:01]}  Bg7 {[%clk 0:02:49]} 9. a4 {[%clk 0:02:55]}  O-O {[%clk 0:02:48]} 10. a5 {[%clk 0:02:55]}  Nd7 {[%clk 0:02:46]} 11. Be2 {[%clk 0:02:53]}  Nf6 {[%clk 0:02:43]} 12. O-O {[%clk 0:02:54]}  Rb8 {[%clk 0:02:38]} 13. Bg5 {[%clk 0:02:41]}  h6 {[%clk 0:02:37]} 14. Be3 {[%clk 0:02:40]}  Kh7 {[%clk 0:02:36]} 15. Qd2 {[%clk 0:02:40]}  Bf5 {[%clk 0:02:31]} 16. h3 {[%clk 0:02:21]}  h5 {[%clk 0:02:31]} 17. Rfe1 {[%clk 0:02:15]}  Qd7 {[%clk 0:02:30]} 18. Bf1 {[%clk 0:02:07]}  e6 {[%clk 0:02:24]} 19. dxe6 {[%clk 0:01:50]}  fxe6 {[%clk 0:02:24]} 20. Rad1 {[%clk 0:01:49]}  Rbd8 {[%clk 0:02:19]} 21. Bg5 {[%clk 0:01:42]}  d5 {[%clk 0:02:16]} 22. Bxf6 {[%clk 0:01:32]}  Bxf6 {[%clk 0:02:15]} 23. Ne4 {[%clk 0:01:33]}  Bxe4 {[%clk 0:02:07]} 24. Rxe4 {[%clk 0:01:33]}  Bd4 {[%clk 0:02:08]} 25. Rxd4 {[%clk 0:01:16]}  cxd4 {[%clk 0:02:09]} 26. Qxd4 {[%clk 0:01:17]}  Qg7 {[%clk 0:02:09]} 27. Qe3 {[%clk 0:01:11]}  e5 {[%clk 0:02:03]} 28. b4 {[%clk 0:01:02]}  e4 {[%clk 0:02:00]} 29. b6 {[%clk 0:01:00]}  axb6 {[%clk 0:01:59]} 30. Qxb6 {[%clk 0:01:00]}  d4 {[%clk 0:01:53]} 31. a6 {[%clk 0:00:56]}  d3 {[%clk 0:01:52]} 32. b5 {[%clk 0:00:53]}  Rd7 {[%clk 0:01:45]} 33. Qe3 {[%clk 0:00:52]}  Qf6 {[%clk 0:01:22]} 34. b6 {[%clk 0:00:46]}  Rd6 {[%clk 0:01:19]} 35. Qxe4 {[%clk 0:00:12]}  Qxf2+ {[%clk 0:01:17]} 36. Kh1 {[%clk 0:00:12]}  Rxb6 {[%clk 0:00:48]} 37. Qe7+ {[%clk 0:00:12]}  Rf7 {[%clk 0:00:47]} 38. Qa7 {[%clk 0:00:08]}  Rxa7 {[%clk 0:00:45]} 39. Bxd3 {[%clk 0:00:08]}  Rd6 {[%clk 0:00:43]} 40. Rf1 {[%clk 0:00:08]}  Qxf1+ {[%clk 0:00:42]} 41. Bxf1 {[%clk 0:00:09]}  Rd1 {[%clk 0:00:42]} 42. Kg1 {[%clk 0:00:09]}  Rxf1+ {[%clk 0:00:43]} 43. Kxf1 {[%clk 0:00:09]}  Rxa6 {[%clk 0:00:44]} 44. Kf2 {[%clk 0:00:10]}  Ra3 {[%clk 0:00:43]} 45. Kg1 {[%clk 0:00:09]}  g5 {[%clk 0:00:43]} 46. Kh2 {[%clk 0:00:10]}  Kg6 {[%clk 0:00:44]} 47. h4 {[%clk 0:00:11]}  gxh4 {[%clk 0:00:44]} 48. Kg1 {[%clk 0:00:10]}  Kg5 {[%clk 0:00:45]} 49. Kh2 {[%clk 0:00:11]}  Kg4 {[%clk 0:00:46]} 50. Kg1 {[%clk 0:00:12]}  Kg3 {[%clk 0:00:46]} 51. Kf1 {[%clk 0:00:12]}  Ra2 {[%clk 0:00:46]} 52. Ke1 {[%clk 0:00:12]}  Rxg2 {[%clk 0:00:47]} 53. Kd1 {[%clk 0:00:13]}  h3 {[%clk 0:00:48]} 54. Ke1 {[%clk 0:00:14]}  Kh2 {[%clk 0:00:48]} 55. Kf1 {[%clk 0:00:15]}  Rg3 {[%clk 0:00:49]} 56. Ke1 {[%clk 0:00:16]}  Rg2 {[%clk 0:00:49]} 57. Kf1 {[%clk 0:00:16]}  h4 {[%clk 0:00:49]} 58. Ke1 {[%clk 0:00:17]}  Kg3 {[%clk 0:00:50]} 59. Kf1 {[%clk 0:00:18]}  h2 {[%clk 0:00:50]} 60. Ke1 {[%clk 0:00:19]}  h1=Q# {[%clk 0:00:51]} 0-1


[Site "https://www.chess.com"]

[Event "Titled Tuesday Blitz May 03 Early 2022"]
[White "Itkis, Boris"]
[Black "Antonio, Jorge Carlos"]
[WhiteFideId "1209167"]
[BlackFideId "113190"]
[WhiteElo "2207"]
[BlackElo "2247"]
[Result "1-0"]
[Round "07"]
[TimeControl "180+1"]
[Date "2022.05.03"]
[WhiteClock "0:00:07"]
[BlackClock "0:00:25"]

1. Nf3 {[%clk 0:03:00]}  d5 {[%clk 0:02:58]} 2. e3 {[%clk 0:03:00]}  Nf6 {[%clk 0:02:57]} 3. b3 {[%clk 0:03:01]}  Bg4 {[%clk 0:02:56]} 4. Bb2 {[%clk 0:03:01]}  c5 {[%clk 0:02:55]} 5. h3 {[%clk 0:02:58]}  Bh5 {[%clk 0:02:54]} 6. Be2 {[%clk 0:02:59]}  Nc6 {[%clk 0:02:54]} 7. O-O {[%clk 0:02:57]}  Bxf3 {[%clk 0:02:53]} 8. Bxf3 {[%clk 0:02:58]}  e5 {[%clk 0:02:53]} 9. d4 {[%clk 0:02:57]}  e4 {[%clk 0:02:53]} 10. Be2 {[%clk 0:02:56]}  cxd4 {[%clk 0:02:52]} 11. exd4 {[%clk 0:02:55]}  Bd6 {[%clk 0:02:52]} 12. c4 {[%clk 0:02:54]}  O-O {[%clk 0:02:47]} 13. Nc3 {[%clk 0:02:54]}  Bc7 {[%clk 0:02:46]} 14. cxd5 {[%clk 0:02:49]}  Nxd5 {[%clk 0:02:43]} 15. Nxe4 {[%clk 0:02:49]}  Qh4 {[%clk 0:02:34]} 16. Bf3 {[%clk 0:02:30]}  Rad8 {[%clk 0:02:23]} 17. Qc2 {[%clk 0:01:38]}  Qf4 {[%clk 0:02:19]} 18. Ng3 {[%clk 0:01:24]}  Ne3 {[%clk 0:02:18]} 19. fxe3 {[%clk 0:01:02]}  Qxg3 {[%clk 0:02:16]} 20. Qf5 {[%clk 0:00:41]}  Rfe8 {[%clk 0:01:40]} 21. Qg4 {[%clk 0:00:18]}  Qxg4 {[%clk 0:01:31]} 22. Bxg4 {[%clk 0:00:16]}  Rxe3 {[%clk 0:01:32]} 23. Rad1 {[%clk 0:00:16]}  g6 {[%clk 0:01:23]} 24. Bf3 {[%clk 0:00:14]}  Nb4 {[%clk 0:01:19]} 25. Bxb7 {[%clk 0:00:14]}  Nxa2 {[%clk 0:01:09]} 26. d5 {[%clk 0:00:12]}  Bb6 {[%clk 0:01:07]} 27. Kh1 {[%clk 0:00:11]}  Re2 {[%clk 0:01:07]} 28. Ba1 {[%clk 0:00:10]}  Nb4 {[%clk 0:01:06]} 29. d6 {[%clk 0:00:11]}  Nc2 {[%clk 0:01:03]} 30. Bf6 {[%clk 0:00:09]}  Ne3 {[%clk 0:00:58]} 31. Bxd8 {[%clk 0:00:08]}  Bxd8 {[%clk 0:00:57]} 32. d7 {[%clk 0:00:06]}  Nxd1 {[%clk 0:00:55]} 33. Rxd1 {[%clk 0:00:07]}  Re7 {[%clk 0:00:53]} 34. Bc6 {[%clk 0:00:06]}  f5 {[%clk 0:00:53]} 35. Ra1 {[%clk 0:00:06]}  Bb6 {[%clk 0:00:51]} 36. Ra6 {[%clk 0:00:06]}  Bd8 {[%clk 0:00:49]} 37. Rxa7 {[%clk 0:00:06]}  Kf7 {[%clk 0:00:50]} 38. Ra8 {[%clk 0:00:06]}  Bb6 {[%clk 0:00:48]} 39. d8=Q {[%clk 0:00:06]}  Bxd8 {[%clk 0:00:48]} 40. Rxd8 {[%clk 0:00:07]}  Kf6 {[%clk 0:00:43]} 41. Rf8+ {[%clk 0:00:06]}  Kg5 {[%clk 0:00:42]} 42. b4 {[%clk 0:00:06]}  Re1+ {[%clk 0:00:41]} 43. Kh2 {[%clk 0:00:07]}  Rb1 {[%clk 0:00:35]} 44. b5 {[%clk 0:00:07]}  Rc1 {[%clk 0:00:35]} 45. Rc8 {[%clk 0:00:06]}  Rb1 {[%clk 0:00:34]} 46. Rb8 {[%clk 0:00:06]}  f4 {[%clk 0:00:31]} 47. Bf3 {[%clk 0:00:06]}  Kf5 {[%clk 0:00:30]} 48. b6 {[%clk 0:00:07]}  g5 {[%clk 0:00:31]} 49. b7 {[%clk 0:00:07]}  h5 {[%clk 0:00:25]} 50. Rf8+ {[%clk 0:00:07]} 1-0


[Site "https://www.chess.com"]

[Event "Titled Tuesday Blitz May 03 Early 2022"]
[White "Kamsky, Gata"]
[Black "Jumabayev, Rinat"]
[WhiteFideId "2000024"]
[BlackFideId "13702661"]
[WhiteElo "2645"]
[BlackElo "2561"]
[Result "1/2-1/2"]
[Round "07"]
[TimeControl "180+1"]
[Date "2022.05.03"]
[WhiteClock "0:00:38"]
[BlackClock "0:00:43"]

1. d4 {[%clk 0:03:00]}  Nf6 {[%clk 0:02:59]} 2. Nf3 {[%clk 0:03:00]}  e6 {[%clk 0:02:59]} 3. Bf4 {[%clk 0:02:59]}  b6 {[%clk 0:03:00]} 4. e3 {[%clk 0:02:59]}  Bb7 {[%clk 0:03:00]} 5. a4 {[%clk 0:02:56]}  a6 {[%clk 0:02:58]} 6. Nbd2 {[%clk 0:02:53]}  Nh5 {[%clk 0:02:58]} 7. Bg5 {[%clk 0:02:49]}  Be7 {[%clk 0:02:58]} 8. h4 {[%clk 0:02:46]}  h6 {[%clk 0:02:56]} 9. Bxe7 {[%clk 0:02:45]}  Qxe7 {[%clk 0:02:57]} 10. Bd3 {[%clk 0:02:42]}  d6 {[%clk 0:02:51]} 11. Qe2 {[%clk 0:02:36]}  Nd7 {[%clk 0:02:24]} 12. g4 {[%clk 0:02:15]}  Nhf6 {[%clk 0:02:23]} 13. Rg1 {[%clk 0:02:15]}  d5 {[%clk 0:01:50]} 14. c3 {[%clk 0:01:48]}  Ne4 {[%clk 0:01:35]} 15. Bc2 {[%clk 0:01:44]}  Nd6 {[%clk 0:01:13]} 16. e4 {[%clk 0:01:35]}  dxe4 {[%clk 0:01:12]} 17. Nxe4 {[%clk 0:01:34]}  O-O-O {[%clk 0:01:10]} 18. O-O-O {[%clk 0:01:30]}  Kb8 {[%clk 0:01:01]} 19. g5 {[%clk 0:01:25]}  hxg5 {[%clk 0:01:01]} 20. hxg5 {[%clk 0:01:25]}  Rh3 {[%clk 0:00:55]} 21. Kb1 {[%clk 0:00:52]}  a5 {[%clk 0:00:55]} 22. Nfd2 {[%clk 0:00:38]}  Rh2 {[%clk 0:00:43]} 23. Nf3 {[%clk 0:00:37]}  Rh3 {[%clk 0:00:43]} 24. Nfd2 {[%clk 0:00:37]}  Rh2 {[%clk 0:00:43]} 25. Nf3 {[%clk 0:00:38]}  Rh3 {[%clk 0:00:43]} 1/2-1/2


[Site "https://www.chess.com"]

[Event "Titled Tuesday Blitz May 03 Early 2022"]
[White "Kanyamarala, Tarun"]
[Black "Khamdamova, Afruza"]
[WhiteFideId "45004714"]
[BlackFideId "14210444"]
[WhiteElo "2177"]
[BlackElo "1660"]
[Result "1/2-1/2"]
[Round "07"]
[TimeControl "180+1"]
[Date "2022.05.03"]
[WhiteClock "0:01:09"]
[BlackClock "0:00:35"]

1. d4 {[%clk 0:02:59]}  Nf6 {[%clk 0:02:59]} 2. Nc3 {[%clk 0:02:55]}  d5 {[%clk 0:02:59]} 3. Bf4 {[%clk 0:02:55]}  e6 {[%clk 0:02:59]} 4. Nb5 {[%clk 0:02:54]}  Na6 {[%clk 0:02:55]} 5. e3 {[%clk 0:02:54]}  c6 {[%clk 0:02:55]} 6. Nc3 {[%clk 0:02:55]}  Nc7 {[%clk 0:02:54]} 7. Nf3 {[%clk 0:02:52]}  Bd6 {[%clk 0:02:54]} 8. Bd3 {[%clk 0:02:51]}  O-O {[%clk 0:02:54]} 9. h4 {[%clk 0:02:48]}  Bxf4 {[%clk 0:02:53]} 10. exf4 {[%clk 0:02:48]}  b6 {[%clk 0:02:49]} 11. Ne5 {[%clk 0:02:46]}  Bb7 {[%clk 0:02:49]} 12. g4 {[%clk 0:02:36]}  c5 {[%clk 0:02:48]} 13. g5 {[%clk 0:02:36]}  Nd7 {[%clk 0:02:42]} 14. Qh5 {[%clk 0:02:25]}  g6 {[%clk 0:02:41]} 15. Qh6 {[%clk 0:02:25]}  Nxe5 {[%clk 0:01:43]} 16. dxe5 {[%clk 0:02:19]}  d4 {[%clk 0:01:41]} 17. Ne4 {[%clk 0:02:14]}  Bxe4 {[%clk 0:01:39]} 18. Bxe4 {[%clk 0:02:13]}  Qe7 {[%clk 0:01:03]} 19. Bxa8 {[%clk 0:02:04]}  Rxa8 {[%clk 0:01:02]} 20. h5 {[%clk 0:02:02]}  Nd5 {[%clk 0:01:01]} 21. Rh4 {[%clk 0:02:02]}  Nb4 {[%clk 0:00:56]} 22. O-O-O {[%clk 0:02:01]}  Nxa2+ {[%clk 0:00:56]} 23. Kb1 {[%clk 0:02:01]}  Nb4 {[%clk 0:00:55]} 24. Rdh1 {[%clk 0:02:02]}  d3 {[%clk 0:00:53]} 25. cxd3 {[%clk 0:01:56]}  Qd7 {[%clk 0:00:51]} 26. R4h3 {[%clk 0:01:21]}  Qa4 {[%clk 0:00:49]} 27. hxg6 {[%clk 0:01:07]}  Qc2+ {[%clk 0:00:48]} 28. Ka1 {[%clk 0:01:07]}  Qa4+ {[%clk 0:00:48]} 29. Kb1 {[%clk 0:01:08]}  Qc2+ {[%clk 0:00:35]} 30. Ka1 {[%clk 0:01:08]}  Qa4+ {[%clk 0:00:35]} 31. Kb1 {[%clk 0:01:09]} 1/2-1/2


[Site "https://www.chess.com"]